fUSD/lending_fUSD_20250105
["ID","MTS","AMOUNT","RATE_DAILY","PERIOD"]
[347725358,1736082643479,-4581.66,8.219e-05,2]
[347725359,1736082643489,-800.43,8.219e-05,2]
[347725360,1736082643499,-500.0,8.219e-05,2]
[347725361,1736082643508,-500.0,8.219e-05,2]
[347725362,1736082643518,-899.51,8.219e-05,2]
[347725363,1736082643527,-606.13,8.219e-05,2]
[347725364,1736082643536,-500.0,8.219e-05,2]
[347725366,1736082643545,-1318.95,8.219e-05,2]
[347725368,1736082643554,-500.0,8.219e-05,2]
[347725370,1736082643563,-799.35,8.219e-05,2]
[347725372,1736082643572,-500.0,8.219e-05,2]
[347725374,1736082643582,-500.0,8.219e-05,2]
[347725376,1736082643591,-500.0,8.219e-05,2]
[347725378,1736082643601,-500.0,8.219e-05,2]
[347725380,1736082643610,-700.27,8.219e-05,2]
[347725382,1736082643620,-500.0,8.219e-05,2]
[347725384,1736082643629,-548.02,8.219e-05,2]
[347725386,1736082643639,-500.0,8.219e-05,2]
[347725388,1736082643648,-500.0,8.219e-05,2]
[347725390,1736082643657,-950.41,8.219e-05,2]
[347725392,1736082643667,-1226.55,8.219e-05,2]
[347725394,1736082643677,-200.16155947,8.219e-05,2]
[347725396,1736082643686,-500.0,8.219e-05,2]
[347725398,1736082643696,-500.0,8.219e-05,2]
[347725400,1736082643706,-500.0,8.219e-05,2]
[347725402,1736082643716,-500.0,8.219e-05,2]
[347725404,1736082643725,-500.0,8.219e-05,2]
[347725406,1736082643734,-979.077765,8.219e-05,2]
[347725408,1736082643744,-540.83,8.219e-05,2]
[347725410,1736082643753,-500.0,8.219e-05,2]
[347725412,1736082643763,-500.0,8.219e-05,2]
[347725414,1736082643772,-710.7,8.219e-05,2]
[347725416,1736082643781,-500.0,8.219e-05,2]
[347725418,1736082643790,-500.0,8.219e-05,2]
[347725420,1736082643800,-252.37,8.219e-05,2]
[347725422,1736082643809,-3235.86,8.219e-05,2]
[347725424,1736082643818,-1149.52,8.219e-05,2]
[347725426,1736082643828,-500.0,8.219e-05,2]
[347725428,1736082643837,-500.0,8.219e-05,2]
[347725430,1736082643846,-3058.33,8.219e-05,2]
[347725432,1736082643856,-155.490194,8.219e-05,2]
[347725434,1736082643865,-500.0,8.219e-05,2]
[347725436,1736082643874,-770.7,8.219e-05,2]
[347725438,1736082643883,-500.0,8.219e-05,2]
[347725440,1736082643893,-500.0,8.219e-05,2]
[347725442,1736082643904,-500.0,8.219e-05,2]
[347725444,1736082643913,-731.03,8.219e-05,2]
[347725446,1736082643922,-156.001691,8.219e-05,2]
[347725448,1736082643932,-500.0,8.219e-05,2]
[347725450,1736082643941,-632.34,8.219e-05,2]
[347725452,1736082643950,-589.2,8.219e-05,2]
[347725454,1736082643960,-550.81,8.219e-05,2]
[347725456,1736082643969,-800.59,8.219e-05,2]
[347725458,1736082643979,-1423.74,8.219e-05,2]
[347725460,1736082643988,-504.73,8.219e-05,2]
[347725462,1736082643998,-500.0,8.219e-05,2]
[347725464,1736082644008,-500.0,8.219e-05,2]
[347725466,1736082644017,-500.0,8.219e-05,2]
[347725468,1736082644027,-500.0,8.219e-05,2]
[347725470,1736082644037,-733.3,8.219e-05,2]
[347725472,1736082644047,-6574.98,8.219e-05,2]
[347725474,1736082644056,-1203.21,8.219e-05,2]
[347725476,1736082644065,-946.92,8.219e-05,2]
[347725478,1736082644074,-500.0,8.219e-05,2]
[347725480,1736082644083,-701.02,8.219e-05,2]
[347725482,1736082644093,-1359.75,8.219e-05,2]
[347725484,1736082644103,-500.0,8.219e-05,2]
[347725486,1736082644112,-500.0,8.219e-05,2]
[347725488,1736082644122,-574.0,8.219e-05,2]
[347725490,1736082644135,-8167.42,8.219e-05,2]
[347725492,1736082644144,-972.17,8.219e-05,2]
[347725494,1736082644153,-901.752283,8.219e-05,2]
[347725496,1736082644162,-500.0,8.219e-05,2]
[347725498,1736082644171,-500.0,8.219e-05,2]
[347725500,1736082644181,-1574.53,8.219e-05,2]
[347725502,1736082644191,-1301.56,8.219e-05,2]
[347725504,1736082644200,-992.67,8.219e-05,2]
[347725506,1736082644210,-500.0,8.219e-05,2]
[347725508,1736082644219,-500.0,8.219e-05,2]
[347725510,1736082644228,-500.0,8.219e-05,2]
[347725512,1736082644238,-699.07,8.219e-05,2]
[347725514,1736082644247,-500.0,8.219e-05,2]
[347725516,1736082644256,-500.0,8.219e-05,2]
[347725518,1736082644265,-500.0,8.219e-05,2]
[347725520,1736082644274,-975.14,8.219e-05,2]
[347725522,1736082644284,-500.0,8.219e-05,2]
[347725524,1736082644294,-500.0,8.219e-05,2]
[347725526,1736082644304,-500.0,8.219e-05,2]
[347725528,1736082644314,-2980.55,8.219e-05,2]
[347725530,1736082644323,-500.0,8.219e-05,2]
[347725532,1736082644336,-587.75,8.219e-05,2]
[347725534,1736082644345,-500.0,8.219e-05,2]
[347725536,1736082644355,-767.04,8.219e-05,2]
[347725538,1736082644364,-500.0,8.219e-05,2]
[347725540,1736082644374,-500.0,8.219e-05,2]
[347725542,1736082644384,-923.41,8.219e-05,2]
[347725544,1736082644393,-500.0,8.219e-05,2]
[347725546,1736082644402,-526.56,8.219e-05,2]
[347725548,1736082644413,-716.4,8.219e-05,2]
[347725550,1736082644422,-2201.15,8.219e-05,2]
[347725552,1736082644431,-5580.95,8.219e-05,2]
[347725554,1736082644441,-500.0,8.219e-05,2]
[347725556,1736082644450,-931.38,8.219e-05,2]
[347725558,1736082644459,-500.0,8.219e-05,2]
[347725560,1736082644469,-500.0,8.219e-05,2]
[347725562,1736082644478,-500.0,8.219e-05,2]
[347725564,1736082644487,-601.77,8.219e-05,2]
[347725566,1736082644496,-500.0,8.219e-05,2]
[347725568,1736082644507,-500.0,8.219e-05,2]
[347725570,1736082644516,-500.0,8.219e-05,2]
[347725572,1736082644526,-500.0,8.219e-05,2]
[347725574,1736082644536,-775.19,8.219e-05,2]
[347725576,1736082644545,-500.0,8.219e-05,2]
[347725578,1736082644555,-598.56,8.219e-05,2]
[347725580,1736082644565,-500.0,8.219e-05,2]
[347725582,1736082644574,-500.0,8.219e-05,2]
[347725584,1736082644583,-500.0,8.219e-05,2]
[347725586,1736082644593,-546.76,8.219e-05,2]
[347725588,1736082644603,-1653.67,8.219e-05,2]
[347725590,1736082644613,-741.86,8.219e-05,2]
[347725592,1736082644624,-500.0,8.219e-05,2]
[347725594,1736082644634,-500.0,8.219e-05,2]
[347725596,1736082644644,-500.0,8.219e-05,2]
[347725598,1736082644653,-500.0,8.219e-05,2]
[347725600,1736082644662,-500.0,8.219e-05,2]
[347725602,1736082644671,-500.0,8.219e-05,2]
[347725605,1736082644680,-500.0,8.219e-05,2]
[347725607,1736082644690,-500.0,8.219e-05,2]
[347725609,1736082644701,-500.0,8.219e-05,2]
[347725611,1736082644711,-1288.86,8.219e-05,2]
[347725613,1736082644720,-676.2,8.219e-05,2]
[347725615,1736082644730,-859.12,8.219e-05,2]
[347725617,1736082644739,-500.0,8.219e-05,2]
[347725619,1736082644748,-768.0,8.219e-05,2]
[347725621,1736082644758,-686.73,8.219e-05,2]
[347725623,1736082644767,-371.56838727,8.219e-05,2]
[347725625,1736082644777,-500.0,8.219e-05,2]
[347725627,1736082644786,-500.0,8.219e-05,2]
[347725628,1736082644796,-500.0,8.219e-05,2]
[347725630,1736082644805,-500.0,8.219e-05,2]
[347725632,1736082644815,-500.0,8.219e-05,2]
[347725635,1736082644825,-500.0,8.219e-05,2]
[347725637,1736082644835,-613.81674033,8.219e-05,2]
[347725639,1736082644845,-500.0,8.219e-05,2]
[347725641,1736082644854,-1619.01,8.219e-05,2]
[347725643,1736082644864,-776.7,8.219e-05,2]
[347725645,1736082644874,-500.0,8.219e-05,2]
[347725647,1736082644885,-500.0,8.219e-05,2]
[347725649,1736082644895,-500.0,8.219e-05,2]
[347725651,1736082644904,-500.0,8.219e-05,2]
[347725653,1736082644914,-1420.92,8.219e-05,2]
[347725655,1736082644924,-500.0,8.219e-05,2]
[347725657,1736082644934,-716.32,8.219e-05,2]
[347725659,1736082644943,-500.0,8.219e-05,2]
[347725661,1736082644952,-590.46,8.219e-05,2]
[347725663,1736082644962,-500.0,8.219e-05,2]
[347725665,1736082644971,-509.05,8.219e-05,2]
[347725667,1736082644981,-500.0,8.219e-05,2]
[347725669,1736082644990,-1435.19,8.219e-05,2]
[347725671,1736082645000,-500.0,8.219e-05,2]
[347725673,1736082645009,-1198.29,8.219e-05,2]
[347725675,1736082645019,-500.0,8.219e-05,2]
[347725677,1736082645029,-500.0,8.219e-05,2]
[347725679,1736082645038,-500.0,8.219e-05,2]
[347725681,1736082645048,-638.74,8.219e-05,2]
[347725683,1736082645057,-713.37,8.219e-05,2]
[347725685,1736082645067,-500.0,8.219e-05,2]
[347725687,1736082645076,-500.0,8.219e-05,2]
[347725689,1736082645086,-500.0,8.219e-05,2]
[347725691,1736082645096,-1531.65,8.219e-05,2]
[347725693,1736082645105,-862.76,8.219e-05,2]
[347725695,1736082645114,-500.0,8.219e-05,2]
[347725697,1736082645123,-500.0,8.219e-05,2]
[347725699,1736082645133,-500.0,8.219e-05,2]
[347725701,1736082645143,-500.0,8.219e-05,2]
[347725703,1736082645155,-500.0,8.219e-05,2]
[347725705,1736082645164,-500.0,8.219e-05,2]
[347725707,1736082645174,-2208.18,8.219e-05,2]
[347725709,1736082645185,-500.0,8.219e-05,2]
[347725711,1736082645194,-842.76,8.219e-05,2]
[347725713,1736082645204,-500.0,8.219e-05,2]
[347725715,1736082645214,-500.0,8.219e-05,2]
[347725717,1736082645223,-500.0,8.219e-05,2]
[347725719,1736082645234,-500.0,8.219e-05,2]
[347725721,1736082645243,-1447.2,8.219e-05,2]
[347725723,1736082645252,-500.0,8.219e-05,2]
[347725725,1736082645261,-500.0,8.219e-05,2]
[347725727,1736082645270,-500.0,8.219e-05,2]
[347725729,1736082645280,-500.0,8.219e-05,2]
[347725731,1736082645289,-500.0,8.219e-05,2]
[347725733,1736082645299,-500.0,8.219e-05,2]
[347725735,1736082645308,-1740.01,8.219e-05,2]
[347725737,1736082645318,-2306.96,8.219e-05,2]
[347725739,1736082645332,-602.73,8.219e-05,2]
[347725741,1736082645343,-591.46,8.219e-05,2]
[347725743,1736082645352,-500.0,8.219e-05,2]
[347725745,1736082645362,-884.29,8.219e-05,2]
[347725754,1736082645438,-801.1,8.219e-05,2]
[347725756,1736082645448,-500.0,8.219e-05,2]
[347725758,1736082645457,-552.4,8.219e-05,2]
[347725760,1736082645466,-814.59,8.219e-05,2]
[347725762,1736082645475,-500.0,8.219e-05,2]
[347725764,1736082645484,-708.53,8.219e-05,2]
[347725766,1736082645492,-541.13,8.219e-05,2]
[347725768,1736082645502,-500.0,8.219e-05,2]
[347725769,1736082645511,-837.78,8.219e-05,2]
[347725771,1736082645521,-1003.71,8.219e-05,2]
[347725773,1736082645530,-1938.68,8.219e-05,2]
[347725775,1736082645539,-500.0,8.219e-05,2]
[347725777,1736082645548,-2985.08,8.219e-05,2]
[347725779,1736082645558,-500.0,8.219e-05,2]
[347725781,1736082645567,-500.0,8.219e-05,2]
[347725783,1736082645576,-1129.38,8.219e-05,2]
[347725785,1736082645585,-1526.02,8.219e-05,2]
[347725787,1736082645595,-3250.33,8.219e-05,2]
[347725789,1736082645604,-500.0,8.219e-05,2]
[347725792,1736082645613,-500.0,8.219e-05,2]
[347725795,1736082645623,-500.0,8.219e-05,2]
[347725798,1736082645633,-1184.49,8.219e-05,2]
[347725801,1736082645642,-500.0,8.219e-05,2]
[347725804,1736082645651,-500.0,8.219e-05,2]
[347725807,1736082645661,-723.71,8.219e-05,2]
[347725810,1736082645670,-500.0,8.219e-05,2]
[347725812,1736082645678,-500.0,8.219e-05,2]
[347725815,1736082645687,-500.0,8.219e-05,2]
[347725817,1736082645697,-500.0,8.219e-05,2]
[347725819,1736082645707,-642.2,8.219e-05,2]
[347725822,1736082645717,-1083.86,8.219e-05,2]
[347725824,1736082645727,-500.0,8.219e-05,2]
[347725826,1736082645736,-500.0,8.219e-05,2]
[347725828,1736082645746,-325.44750405,8.219e-05,2]
[347725830,1736082645755,-500.0,8.219e-05,2]
[347725832,1736082645764,-500.0,8.219e-05,2]
[347725834,1736082645774,-886.44,8.219e-05,2]
[347725836,1736082645783,-500.0,8.219e-05,2]
[347725838,1736082645792,-500.0,8.219e-05,2]
[347725840,1736082645802,-500.0,8.219e-05,2]
[347725842,1736082645811,-500.0,8.219e-05,2]
[347725844,1736082645821,-500.0,8.219e-05,2]
[347725846,1736082645831,-1148.05,8.219e-05,2]
[347725848,1736082645840,-6216.38,8.219e-05,2]
[347725850,1736082645849,-500.0,8.219e-05,2]
[347725852,1736082645859,-500.0,8.219e-05,2]
[347725854,1736082645868,-1846.17,8.219e-05,2]
[347725856,1736082645878,-500.0,8.219e-05,2]
[347725858,1736082645888,-780.43,8.219e-05,2]
[347725859,1736082645898,-500.0,8.219e-05,2]
[347725860,1736082645908,-500.0,8.219e-05,2]
[347725862,1736082645918,-500.0,8.219e-05,2]
[347725864,1736082645927,-500.0,8.219e-05,2]
[347725866,1736082645936,-500.0,8.219e-05,2]
[347725868,1736082645946,-500.0,8.219e-05,2]
[347725869,1736082645955,-500.0,8.219e-05,2]
[347725872,1736082645965,-500.0,8.219e-05,2]
[347725873,1736082645975,-907.68,8.219e-05,2]
[347725876,1736082645985,-500.0,8.219e-05,2]
[347725878,1736082645995,-548.44,8.219e-05,2]
[347725879,1736082646004,-500.0,8.219e-05,2]
[347725882,1736082646014,-854.21,8.219e-05,2]
[347725884,1736082646024,-813.1,8.219e-05,2]
[347725886,1736082646034,-859.8,8.219e-05,2]
[347725888,1736082646044,-5275.88,8.219e-05,2]
[347725890,1736082646053,-6630.37,8.219e-05,2]
[347725891,1736082646063,-500.0,8.219e-05,2]
[347725894,1736082646073,-500.0,8.219e-05,2]
[347725895,1736082646082,-783.76,8.219e-05,2]
[347725897,1736082646092,-500.0,8.219e-05,2]
[347725899,1736082646101,-791.22,8.219e-05,2]
[347725901,1736082646111,-500.0,8.219e-05,2]
[347725903,1736082646121,-500.0,8.219e-05,2]
[347725905,1736082646132,-626.09,8.219e-05,2]
[347725908,1736082646141,-500.0,8.219e-05,2]
[347725909,1736082646150,-500.0,8.219e-05,2]
[347725911,1736082646160,-500.0,8.219e-05,2]
[347725914,1736082646169,-500.0,8.219e-05,2]
[347725916,1736082646179,-500.0,8.219e-05,2]
[347725918,1736082646189,-787.84,8.219e-05,2]
[347725920,1736082646198,-500.0,8.219e-05,2]
[347725922,1736082646208,-2156.33,8.219e-05,2]
[347725924,1736082646217,-1611.25,8.219e-05,2]
[347725925,1736082646225,-500.0,8.219e-05,2]
[347725928,1736082646235,-545.99,8.219e-05,2]
[347725930,1736082646245,-500.0,8.219e-05,2]
[347725931,1736082646254,-1104.04,8.219e-05,2]
[347725933,1736082646263,-614.61,8.219e-05,2]
[347725935,1736082646273,-500.0,8.219e-05,2]
[347725937,1736082646282,-607.65332772,8.219e-05,2]
[347725939,1736082646291,-500.0,8.219e-05,2]
[347725942,1736082646300,-500.0,8.219e-05,2]
[347725944,1736082646310,-787.33,8.219e-05,2]
[347725946,1736082646319,-500.0,8.219e-05,2]
[347725947,1736082646332,-500.0,8.219e-05,2]
[347725950,1736082646341,-594.19950764,8.219e-05,2]
[347725951,1736082646349,-991.0,8.219e-05,2]
[347725953,1736082646358,-9039.62,8.219e-05,2]
[347725955,1736082646369,-500.0,8.219e-05,2]
[347725957,1736082646378,-500.0,8.219e-05,2]
[347725959,1736082646388,-500.0,8.219e-05,2]
[347725961,1736082646398,-703.81,8.219e-05,2]
[347725963,1736082646407,-500.0,8.219e-05,2]
[347725965,1736082646417,-588.86241579,8.219e-05,2]
[347725967,1736082646426,-150.0,8.219e-05,2]
[347725969,1736082646436,-500.0,8.219e-05,2]
[347725971,1736082646445,-500.0,8.219e-05,2]
[347725973,1736082646454,-826.81,8.219e-05,2]
[347725975,1736082646463,-275.30733881,8.219e-05,2]
[347725977,1736082646472,-500.0,8.219e-05,2]
[347725979,1736082646481,-500.0,8.219e-05,2]
[347725981,1736082646491,-596.74,8.219e-05,2]
[347725983,1736082646500,-854.7,8.219e-05,2]
[347725985,1736082646509,-500.0,8.219e-05,2]
[347725987,1736082646518,-587.23,8.219e-05,2]
[347725989,1736082646527,-500.0,8.219e-05,2]
[347725991,1736082646537,-500.0,8.219e-05,2]
[347725993,1736082646546,-500.0,8.219e-05,2]
[347725995,1736082646555,-672.89,8.219e-05,2]
[347725997,1736082646564,-500.0,8.219e-05,2]
[347725999,1736082646572,-618.52,8.219e-05,2]
[347726001,1736082646581,-500.0,8.219e-05,2]
[347726003,1736082646591,-626.4340361,8.219e-05,2]
[347726005,1736082646601,-500.0,8.219e-05,2]
[347726007,1736082646610,-500.0,8.219e-05,2]
[347726009,1736082646619,-500.0,8.219e-05,2]
[347726011,1736082646629,-500.0,8.219e-05,2]
[347726013,1736082646639,-500.0,8.219e-05,2]
[347726015,1736082646648,-500.0,8.219e-05,2]
[347726017,1736082646657,-1293.66,8.219e-05,2]
[347726019,1736082646666,-1379.29,8.219e-05,2]
[347726021,1736082646675,-500.0,8.219e-05,2]
[347726023,1736082646684,-500.0,8.219e-05,2]
[347726025,1736082646694,-805.69,8.219e-05,2]
[347726027,1736082646703,-500.0,8.219e-05,2]
[347726029,1736082646712,-500.0,8.219e-05,2]
[347726031,1736082646721,-500.0,8.219e-05,2]
[347726033,1736082646730,-701.7,8.219e-05,2]
[347726035,1736082646740,-500.0,8.219e-05,2]
[347726037,1736082646749,-500.0,8.219e-05,2]
[347726039,1736082646758,-500.0,8.219e-05,2]
[347726041,1736082646767,-500.0,8.219e-05,2]
[347726043,1736082646776,-1107.14,8.219e-05,2]
[347726045,1736082646785,-500.0,8.219e-05,2]
[347726047,1736082646795,-500.0,8.219e-05,2]
[347726049,1736082646804,-500.0,8.219e-05,2]
[347726051,1736082646814,-500.0,8.219e-05,2]
[347726053,1736082646823,-851.86,8.219e-05,2]
[347726055,1736082646832,-1518.58,8.219e-05,2]
[347726057,1736082646842,-628.18,8.219e-05,2]
[347726059,1736082646851,-1052.01,8.219e-05,2]
[347726061,1736082646861,-500.0,8.219e-05,2]
[347726063,1736082646870,-500.0,8.219e-05,2]
[347726065,1736082646879,-500.0,8.219e-05,2]
[347726067,1736082646888,-747.22,8.219e-05,2]
[347726069,1736082646897,-500.0,8.219e-05,2]
[347726071,1736082646906,-500.0,8.219e-05,2]
[347726073,1736082646914,-1466.32,8.219e-05,2]
[347726075,1736082646923,-500.0,8.219e-05,2]
[347726077,1736082646932,-2640.16,8.219e-05,2]
[347726079,1736082646941,-500.0,8.219e-05,2]
[347726081,1736082646951,-928.51,8.219e-05,2]
[347726082,1736082646960,-4308.85,8.219e-05,2]
[347726084,1736082646969,-500.0,8.219e-05,2]
[347726086,1736082646978,-500.0,8.219e-05,2]
[347726088,1736082646987,-1292.5,8.219e-05,2]
[347726090,1736082646996,-500.0,8.219e-05,2]
[347726092,1736082647005,-500.0,8.219e-05,2]
[347726094,1736082647014,-1781.76,8.219e-05,2]
[347726096,1736082647023,-500.0,8.219e-05,2]
[347726098,1736082647033,-500.0,8.219e-05,2]
[347726100,1736082647042,-531.61,8.219e-05,2]
[347726102,1736082647051,-500.0,8.219e-05,2]
[347726104,1736082647060,-500.0,8.219e-05,2]
[347726106,1736082647069,-500.0,8.219e-05,2]
[347726108,1736082647078,-2738.11,8.219e-05,2]
[347726110,1736082647087,-500.0,8.219e-05,2]
[347726112,1736082647097,-500.0,8.219e-05,2]
[347726114,1736082647106,-500.0,8.219e-05,2]
[347726116,1736082647115,-500.0,8.219e-05,2]
[347726118,1736082647124,-1143.71,8.219e-05,2]
[347726120,1736082647134,-1115.95,8.219e-05,2]
[347726122,1736082647144,-500.0,8.219e-05,2]
[347726124,1736082647152,-180.65793965,8.219e-05,2]
[347726126,1736082647162,-4565.54,8.219e-05,2]
[347726128,1736082647171,-500.0,8.219e-05,2]
[347726130,1736082647179,-500.0,8.219e-05,2]
[347726132,1736082647189,-500.0,8.219e-05,2]
[347726134,1736082647198,-500.0,8.219e-05,2]
[347726136,1736082647207,-633.42,8.219e-05,2]
[347726137,1736082647216,-500.0,8.219e-05,2]
[347726139,1736082647225,-1532.62,8.219e-05,2]
[347726141,1736082647234,-974.12,8.219e-05,2]
[347726143,1736082647244,-1534.59,8.219e-05,2]
[347726145,1736082647253,-15983.57,8.219e-05,2]
[347726147,1736082647262,-519.6,8.219e-05,2]
[347726149,1736082647271,-500.0,8.219e-05,2]
[347726151,1736082647279,-500.0,8.219e-05,2]
[347726153,1736082647289,-500.0,8.219e-05,2]
[347726155,1736082647299,-500.0,8.219e-05,2]
[347726157,1736082647307,-709.53,8.219e-05,2]
[347726159,1736082647316,-500.0,8.219e-05,2]
[347726161,1736082647326,-1151.78,8.219e-05,2]
[347726163,1736082647338,-500.0,8.219e-05,2]
[347726165,1736082647348,-500.0,8.219e-05,2]
[347726167,1736082647357,-500.0,8.219e-05,2]
[347726169,1736082647366,-500.0,8.219e-05,2]
[347726170,1736082647377,-500.0,8.219e-05,2]
[347726172,1736082647387,-1530.23,8.219e-05,2]
[347726175,1736082647396,-796.97,8.219e-05,2]
[347726176,1736082647407,-500.0,8.219e-05,2]
[347726178,1736082647418,-500.0,8.219e-05,2]
[347726180,1736082647427,-500.0,8.219e-05,2]
[347726182,1736082647437,-1347.0,8.219e-05,2]
[347726184,1736082647446,-500.0,8.219e-05,2]
[347726186,1736082647455,-500.0,8.219e-05,2]
[347726188,1736082647465,-500.0,8.219e-05,2]
[347726190,1736082647474,-500.0,8.219e-05,2]
[347726192,1736082647483,-500.0,8.219e-05,2]
[347726194,1736082647493,-1046.55,8.219e-05,2]
[347726196,1736082647502,-898.18,8.219e-05,2]
[347726198,1736082647514,-500.0,8.219e-05,2]
[347726200,1736082647523,-500.0,8.219e-05,2]
[347726202,1736082647532,-500.0,8.219e-05,2]
[347726204,1736082647542,-715.88,8.219e-05,2]
[347726206,1736082647551,-500.0,8.219e-05,2]
[347726208,1736082647560,-500.0,8.219e-05,2]
[347726210,1736082647569,-500.0,8.219e-05,2]
[347726212,1736082647579,-500.0,8.219e-05,2]
[347726214,1736082647589,-2340.0,8.219e-05,2]
[347726216,1736082647599,-500.0,8.219e-05,2]
[347726218,1736082647609,-1406.06,8.219e-05,2]
[347726220,1736082647618,-2476.36,8.219e-05,2]
[347726222,1736082647628,-590.21,8.219e-05,2]
[347726224,1736082647637,-500.0,8.219e-05,2]
[347726226,1736082647645,-3108.44,8.219e-05,2]
[347726228,1736082647655,-249.73402863,8.219e-05,2]
[347726230,1736082647664,-500.0,8.219e-05,2]
[347726232,1736082647673,-500.0,8.219e-05,2]
[347726234,1736082647683,-500.0,8.219e-05,2]
[347726236,1736082647692,-1366.55,8.219e-05,2]
[347726237,1736082647701,-528.87,8.219e-05,2]
[347726239,1736082647710,-500.0,8.219e-05,2]
[347726241,1736082647720,-500.0,8.219e-05,2]
[347726243,1736082647729,-843.95,8.219e-05,2]
[347726245,1736082647738,-500.0,8.219e-05,2]
[347726247,1736082647747,-831.82,8.219e-05,2]
[347726249,1736082647756,-500.0,8.219e-05,2]
[347726251,1736082647765,-500.0,8.219e-05,2]
[347726253,1736082647774,-500.0,8.219e-05,2]
[347726255,1736082647783,-501.2384666,8.219e-05,2]
[347726257,1736082647792,-784.02,8.219e-05,2]
[347726259,1736082647802,-1050.52,8.219e-05,2]
[347726261,1736082647812,-500.0,8.219e-05,2]
[347726263,1736082647821,-1308.84,8.219e-05,2]
[347726265,1736082647830,-500.0,8.219e-05,2]
[347726267,1736082647840,-618.35,8.219e-05,2]
[347726269,1736082647849,-500.0,8.219e-05,2]
[347726271,1736082647858,-500.0,8.219e-05,2]
[347726273,1736082647867,-500.0,8.219e-05,2]
[347726275,1736082647876,-1015.37,8.219e-05,2]
[347726277,1736082647886,-665.95,8.219e-05,2]
[347726279,1736082647894,-1219.46,8.219e-05,2]
[347726281,1736082647903,-3518.8,8.219e-05,2]
[347726282,1736082647913,-500.0,8.219e-05,2]
[347726284,1736082647922,-500.0,8.219e-05,2]
[347726286,1736082647933,-774.73,8.219e-05,2]
[347726288,1736082647942,-2456.13,8.219e-05,2]
[347726290,1736082647951,-545.03,8.219e-05,2]
[347726291,1736082647960,-500.0,8.219e-05,2]
[347726293,1736082647969,-777.86,8.219e-05,2]
[347726294,1736082647979,-500.0,8.219e-05,2]
[347726295,1736082647988,-752.67,8.219e-05,2]
[347726296,1736082647997,-500.0,8.219e-05,2]
[347726297,1736082648006,-500.0,8.219e-05,2]
[347726298,1736082648016,-500.0,8.219e-05,2]
[347726299,1736082648025,-500.0,8.219e-05,2]
[347726300,1736082648035,-429.99,8.219e-05,2]
[347726301,1736082648043,-500.0,8.219e-05,2]
[347726303,1736082648053,-500.0,8.219e-05,2]
[347726305,1736082648062,-4842.5,8.219e-05,2]
[347726307,1736082648071,-500.0,8.219e-05,2]
[347726309,1736082648080,-712.47,8.219e-05,2]
[347726311,1736082648089,-500.0,8.219e-05,2]
[347726312,1736082648099,-500.0,8.219e-05,2]
[347726314,1736082648108,-500.0,8.219e-05,2]
[347726315,1736082648117,-2097.36,8.219e-05,2]
[347726316,1736082648126,-9023.25,8.219e-05,2]
[347726317,1736082648135,-500.0,8.219e-05,2]
[347726318,1736082648144,-562.29736993,8.219e-05,2]
[347726319,1736082648153,-681.4,8.219e-05,2]
[347726320,1736082648162,-500.0,8.219e-05,2]
[347726321,1736082648171,-500.0,8.219e-05,2]
[347726322,1736082648180,-1735.3,8.219e-05,2]
[347726323,1736082648189,-500.0,8.219e-05,2]
[347726324,1736082648198,-7962.17,8.219e-05,2]
[347726325,1736082648207,-500.0,8.219e-05,2]
[347726326,1736082648216,-3103.51,8.219e-05,2]
[347726327,1736082648225,-500.0,8.219e-05,2]
[347726328,1736082648235,-6383.61,8.219e-05,2]
[347726329,1736082648244,-1865.3,8.219e-05,2]
[347726330,1736082648253,-500.0,8.219e-05,2]
[347726331,1736082648263,-1739.86,8.219e-05,2]